bitfinex-derivatives/quotes_ETHF0:USTF0_20250317
["timestamp","ask_amount","ask_price","bid_price","bid_amount"]
[1742174914624,1.74746,1898.3,1898.2,1.3918]
[1742174915121,0.6938,1898.3,1898.2,2.44551]
[1742174915314,0.6938,1898.3,1898.2,1.3918]
[1742174917026,1.74745,1898.3,1898.2,1.3918]
[1742174917621,0.6938,1898.3,1898.2,1.3918]
[1742174917821,1.74745,1898.3,1898.2,1.3918]
[1742174919219,3.467,1898.4,1898.2,4.5996]
[1742174919429,1.05361,1898.4,1898.2,4.5996]
[1742174919618,1.05361,1898.4,1898.3,1.3514]
[1742174919816,4.52061,1898.4,1898.3,1.3514]
[1742174920823,1.05361,1898.4,1898.3,1.3514]
[1742174921019,4.52061,1898.4,1898.3,1.3514]
[1742174922321,1.05361,1898.4,1898.3,1.3514]
[1742174922526,4.52061,1898.4,1898.3,1.3514]
[1742174923822,3.466,1898.4,1898.3,2.40505]
[1742174924721,4.5196,1898.4,1898.3,1.3514]
[1742174924917,4.5196,1898.4,1898.3,2.40505]
[1742174925115,3.466,1898.4,1898.3,2.40505]
[1742174925319,2.1517,1898.7,1898.3,1.3514]
[1742174925519,1.75841,1898.8,1898.7,1.05343]
[1742174925821,1.06124909,1898.9,1898.8,1.05338]
[1742174926019,4.52724909,1898.9,1898.8,41.85338]
[1742174926414,3.47389909,1898.9,1898.8,45.06118]
[1742174926629,3.47389909,1898.9,1898.8,50.26523843]
[1742174926825,3.47389909,1898.9,1898.8,47.76523843]
[1742174928024,4.52721909,1898.9,1898.8,47.76523843]
[1742174928723,3.47389909,1898.9,1898.8,47.76523843]
[1742174930627,4.52721909,1898.9,1898.8,47.76523843]
[1742174930828,3.47389909,1898.9,1898.8,47.76523843]
[1742174933332,4.89849909,1898.9,1898.8,47.76523843]
[1742174933929,5.95181909,1898.9,1898.8,43.50405843]
[1742174934229,6.67011909,1898.9,1898.8,40.8]
[1742174935328,6.67011909,1898.9,1898.8,42.1121]
[1742174937836,6.67011909,1898.9,1898.8,40.8]
[1742174938028,9.87791909,1898.9,1898.8,40.8]
[1742174947341,9.87691909,1898.9,1898.8,40.8]
[1742174954448,4.26901909,1898.9,1898.8,40.8]
[1742174954639,6.68069909,1898.9,1898.8,40.8]
[1742174954950,7.73401909,1898.9,1898.8,40.8]
[1742174955344,6.68069909,1898.9,1898.8,40.8]
[1742174955738,3.21569909,1898.9,1898.8,42.114]
[1742174956041,6.68069909,1898.9,1898.8,42.114]
[1742174956242,6.68069909,1898.9,1898.8,43.21148]
[1742174956443,0.00789909,1898.9,1898.8,48.91928]
[1742174956838,3.2078,1899.3,1898.8,53.20339843]
[1742174957051,3.465,1899.2,1898.9,1.314]
[1742174957252,3.465,1899.2,1899.0,1.05321]
[1742174957553,4.51815,1899.2,1899.1,1.314]
[1742174958147,3.465,1899.2,1899.1,2.36721]
[1742174958348,7.73382909,1899.3,1899.1,43.16721]
[1742174958553,7.73382909,1899.3,1899.2,1.4711]
[1742174959155,4.52602909,1899.3,1899.2,42.2711]
[1742174959857,0.00789909,1899.3,1899.2,42.2711]
[1742174960057,4.52599909,1899.3,1899.2,42.2711]
[1742174961255,3.47289909,1899.3,1899.2,43.32425]
[1742174961558,0.00789909,1899.3,1899.2,43.32425]
[1742174961953,0.00789909,1899.3,1899.2,46.53205]
[1742174962559,4.51704,1899.4,1899.3,1.0531]
[1742174962758,4.51704,1899.4,1899.3,2.4833]
[1742174963155,4.51704,1899.4,1899.3,43.2833]
[1742174963761,4.51704,1899.4,1899.3,42.2302]
[1742174964061,4.51704,1899.4,1899.3,43.2833]
[1742174964359,4.51704,1899.4,1899.3,42.2302]
[1742174965356,5.17734,1899.4,1899.3,42.2302]
[1742174965659,5.85754,1899.4,1899.3,42.2302]
[1742174966162,7.25214,1899.4,1899.3,42.2302]
[1742174967265,4.1243,1899.4,1899.3,42.2302]
[1742174967563,3.464,1899.4,1899.3,42.2302]
[1742174967755,4.51704,1899.4,1899.3,42.2302]
[1742174968962,5.83244,1899.4,1899.3,42.2302]
[1742174974166,4.51704,1899.4,1899.3,42.2302]
[1742174974668,1.05303,1899.5,1899.3,42.2302]
[1742174974866,1.05303,1899.5,1899.4,1.3554]
[1742174975066,4.51603,1899.5,1899.4,1.3554]
[1742174978571,6.63863,1899.5,1899.4,1.3554]
[1742174978762,1.05304,1899.4,1899.3,40.8]
[1742174978962,2.47074,1899.4,1899.3,40.8]
[1742174979869,4.97074,1899.4,1899.3,40.8]
[1742174982564,1.05321,1899.1,1899.0,0.00789909]
[1742174982769,1.05338,1898.8,1898.7,1.4206]
[1742174982963,4.51638,1898.8,1898.7,1.4206]
[1742174983568,4.51638,1898.8,1898.7,42.2206]
[1742174983969,5.87268,1898.8,1898.7,40.8]
[1742174985868,6.53418,1898.8,1898.7,42.2129]
[1742174986976,4.51638,1898.8,1898.7,42.2129]
[1742174987275,3.463,1898.8,1898.7,42.2129]
[1742174987471,4.51638,1898.8,1898.7,42.2129]
[1742174987869,5.96738,1898.8,1898.7,42.2129]
[1742174988072,3.463,1898.8,1898.7,42.2129]
[1742174988272,3.463,1898.8,1898.7,44.91695843]
[1742174988471,3.463,1898.8,1898.7,44.97275843]
[1742174988675,4.51638,1898.8,1898.7,44.91695843]
[1742174989068,5.83408,1898.8,1898.7,44.91695843]
[1742174991881,5.83408,1898.8,1898.7,42.2129]
[1742174995581,9.04188,1898.8,1898.7,42.2129]
[1742174995778,9.04188,1898.8,1898.7,40.8]
[1742174998680,5.83408,1898.8,1898.7,40.8]
[1742174998882,5.83408,1898.8,1898.7,42.2101]
[1742175001084,9.04188,1898.8,1898.7,42.2101]
[1742175001882,9.04188,1898.8,1898.7,40.8]
[1742175002988,9.04188,1898.8,1898.7,42.1901]
[1742175003796,9.04188,1898.8,1898.7,40.8]
[1742175004284,5.83408,1898.8,1898.7,40.8]
[1742175004587,9.04188,1898.8,1898.7,42.1199]
[1742175004782,2.37108,1898.8,1898.7,42.1199]
[1742175004987,4.51638,1898.8,1898.7,42.1199]
[1742175006287,1.05338,1898.8,1898.7,42.1199]
[1742175006590,3.463,1898.8,1898.7,45.87733843]
[1742175007991,4.51638,1898.8,1898.7,45.87733843]
[1742175008493,3.463,1898.8,1898.7,45.87733843]
[1742175008889,4.51638,1898.8,1898.7,45.87733843]
[1742175009393,3.463,1898.8,1898.7,45.87733843]
[1742175009588,1.06124909,1898.9,1898.7,45.87733843]
[1742175009589,0.00789909,1898.9,1898.8,1.05338]
[1742175009789,1.05329,1899.0,1898.9,1.05332]
[1742175010095,1.05329,1899.0,1898.9,1.09792]
[1742175010295,1.05329,1899.0,1898.9,2.42672]
[1742175010494,1.05329,1899.0,1898.9,5.13077843]
[1742175010991,3.463,1899.1,1898.9,4.07745843]
[1742175011301,4.51623,1899.1,1899.0,2.38207]
[1742175011496,1.05323,1899.1,1899.0,2.38207]
[1742175011890,7.72399,1899.2,1899.1,1.05321]
[1742175012089,7.72399,1899.2,1899.1,43.18201]
[1742175012294,1.05319,1899.2,1899.1,42.1288]
[1742175012587,4.51619,1899.2,1899.1,42.1288]
[1742175013795,3.463,1899.2,1899.1,43.18201]
[1742175014197,4.51615,1899.2,1899.1,42.1288]
[1742175014693,3.463,1899.2,1899.1,43.18201]
[1742175014882,3.463,1899.2,1899.1,42.1288]
[1742175015190,4.51615,1899.2,1899.1,42.1288]
[1742175015389,4.51615,1899.2,1899.1,44.83285843]
[1742175015591,3.463,1899.2,1899.1,44.83285843]
[1742175015791,4.51615,1899.2,1899.1,44.83285843]
[1742175015983,5.90275,1899.2,1899.1,42.1288]
[1742175016295,9.78715,1899.2,1899.1,40.8]
[1742175017391,12.28715,1899.2,1899.1,40.8]
[1742175018094,9.78715,1899.2,1899.1,40.8]
[1742175018492,12.28715,1899.2,1899.1,40.8]
[1742175018803,9.78715,1899.2,1899.1,40.8]
[1742175019198,12.28715,1899.2,1899.1,40.8]
[1742175020896,9.78715,1899.2,1899.1,40.8]
[1742175022303,9.78615,1899.2,1899.1,40.8]
[1742175024408,6.32415,1899.2,1899.1,40.8]
[1742175024698,8.39955,1899.2,1899.1,40.8]
[1742175024904,9.75615,1899.2,1899.1,40.8]
[1742175025101,6.54835,1899.2,1899.1,40.8]
[1742175025305,9.75615,1899.2,1899.1,40.8]
[1742175026895,8.39955,1899.2,1899.1,40.8]
[1742175027096,7.72295,1899.2,1899.1,40.8]
[1742175027600,3.2078,1899.2,1899.1,40.8]
[1742175027799,3.462,1899.2,1899.1,43.50405843]
[1742175027999,3.462,1899.2,1899.1,44.93055843]
[1742175028401,3.462,1899.2,1899.1,45.98376843]
[1742175029498,4.51511,1899.3,1899.1,45.98376843]
[1742175029698,4.51511,1899.3,1899.2,1.3773]
[1742175030610,3.462,1899.3,1899.2,2.43045]
[1742175030806,4.5151,1899.3,1899.2,1.3773]
[1742175031007,1.0531,1899.3,1899.2,2.43045]
[1742175031805,4.51508,1899.4,1899.3,1.0531]
[1742175032000,4.51508,1899.4,1899.3,2.4973]
[1742175032400,1.05295,1899.6,1899.5,1.05297]
[1742175032607,4.51495,1899.6,1899.5,1.05297]
[1742175032804,1.05299,1899.5,1899.4,5.75342]
[1742175033002,1.05299,1899.5,1899.4,45.10922]
[1742175033404,4.51498,1899.6,1899.5,1.05299]
[1742175034311,31.9678,1899.9,1899.4,46.76025843]
[1742175034511,3.462,1899.9,1899.8,1.05282]
[1742175035209,7.72255,1900.0,1899.9,1.05277]
[1742175035811,3.462,1900.0,1899.9,1.05277]
[1742175036316,3.461,1900.1,1900.0,1.05271]
[1742175036502,1.73034,1900.2,1900.0,1.05271]
[1742175036710,3.461,1900.1,1900.0,1.05271]
[1742175037217,1.73034,1900.2,1900.0,1.05271]
[1742175037417,3.461,1900.1,1900.0,1.05271]
[1742175038309,3.461,1900.1,1899.8,46.76005843]
[1742175038515,1.05275,1900.0,1899.8,44.55682843]
[1742175038819,5.8998,1900.1,1899.9,1.05277]
[1742175039016,1.05271,1900.0,1899.9,1.05277]
[1742175039417,3.461,1900.1,1899.9,1.05273]
[1742175039717,4.51367,1900.1,1900.0,1.05271]
[1742175039917,3.461,1900.1,1900.0,1.05271]
[1742175041508,3.11644,1900.2,1900.0,1.05271]
[1742175041724,3.461,1900.1,1900.0,1.05271]
[1742175042321,0.7212,1900.4,1900.0,5.91185843]
[1742175042622,0.7212,1900.4,1900.2,1.05256]
[1742175042623,3.46,1900.3,1900.2,1.05256]
[1742175042820,4.51254,1900.3,1900.1,1.05261]
[1742175043126,4.51254,1900.3,1900.2,40.8]
[1742175044020,3.46,1900.3,1900.2,40.8]
[1742175044721,3.46,1900.3,1900.2,41.8526]
[1742175044927,3.46,1900.3,1900.2,40.8]
[1742175045118,3.46,1900.3,1900.2,41.8526]
[1742175045826,0.7063,1900.5,1900.2,44.0078]
[1742175046022,3.46,1900.3,1900.2,45.0604]
[1742175048221,30.25641,1900.6,1900.4,1.05245]
[1742175048523,3.46,1900.5,1900.4,3.75650843]
[1742175048717,3.46,1900.6,1900.5,1.05243]
[1742175049730,3.46,1900.6,1900.4,5.91185843]
[1742175049731,4.51238,1900.6,1900.4,5.91185843]
[1742175049931,4.51238,1900.6,1900.5,42.2055]
[1742175050325,4.51238,1900.6,1900.5,40.8]
[1742175050626,7.72018,1900.6,1900.5,40.8]
[1742175051028,10.22018,1900.6,1900.5,40.8]
[1742175051227,1.05279,1899.9,1899.7,2.71195752]
[1742175051423,4.1564,1899.8,1899.7,2.71195752]
[1742175051623,4.1564,1899.8,1899.7,3.76483752]
[1742175052227,4.1564,1899.8,1899.7,44.56483752]
[1742175052429,4.1564,1899.8,1899.7,45.97033752]
[1742175053422,5.20922,1899.8,1899.7,44.91745752]
[1742175053832,4.1564,1899.8,1899.7,45.97033752]
[1742175054533,5.20922,1899.8,1899.7,44.91745752]
[1742175054827,5.20922,1899.8,1899.7,45.97033752]
[1742175055131,5.20922,1899.8,1899.7,44.91745752]
[1742175055528,5.20922,1899.8,1899.7,40.80789909]
[1742175056924,4.1564,1899.8,1899.7,40.80789909]
[1742175057527,4.1564,1899.8,1899.7,42.14089909]
[1742175058228,5.20922,1899.8,1899.7,42.14089909]
[1742175058430,4.1564,1899.8,1899.7,42.14089909]
[1742175058630,5.20922,1899.8,1899.7,42.14089909]
[1742175060538,5.20922,1899.8,1899.7,40.80789909]
[1742175060931,6.65072,1899.8,1899.7,40.80789909]
[1742175061334,9.15072,1899.8,1899.7,40.80789909]
[1742175062231,9.56761451,1899.8,1899.7,40.80789909]
[1742175062541,6.65072,1899.8,1899.7,40.80789909]
[1742175066140,3.19172,1899.8,1899.7,40.80789909]
[1742175066340,6.65172,1899.8,1899.7,40.80789909]
[1742175066637,9.15172,1899.8,1899.7,40.80789909]
[1742175067035,1.05299,1899.5,1899.4,2.70405843]
[1742175067233,1.0531,1899.3,1899.2,1.3114]
[1742175067829,2.4868,1899.3,1899.2,1.3114]
[1742175068038,2.4868,1899.3,1899.2,42.1114]
[1742175068736,3.2108,1899.3,1899.2,40.8]
[1742175069040,6.4186,1899.3,1899.2,40.8]
[1742175069630,8.9186,1899.3,1899.2,40.8]
[1742175071934,6.4186,1899.3,1899.2,40.8]
[1742175073343,9.8786,1899.3,1899.2,40.8]
[1742175074544,12.3786,1899.3,1899.2,40.8]
[1742175075646,1.05315,1899.2,1899.1,0.00789909]
[1742175075846,1.05343,1898.7,1898.6,1.3518]
[1742175076050,4.51443,1898.7,1898.6,1.3518]
[1742175076746,5.83803,1898.7,1898.6,42.1518]
[1742175077640,4.51443,1898.7,1898.6,42.1518]
[1742175078545,3.461,1898.7,1898.6,42.1518]
[1742175078856,3.461,1898.7,1898.6,43.26139]
[1742175079148,1.05336,1898.9,1898.6,43.26139]
[1742175079348,3.461,1898.9,1898.8,1.05336]
[1742175079547,1.1747,1898.9,1898.8,3.75741843]
[1742175079748,3.461,1899.0,1898.9,1.05328]
[1742175079942,4.51423,1899.1,1898.9,44.55733843]
[1742175080143,3.461,1899.1,1899.0,1.05327]
[1742175080354,3.461,1899.2,1899.1,1.0532]
[1742175080647,1.0531,1899.3,1899.1,3.75722843]
[1742175081048,1.0531,1899.3,1899.2,40.8]
[1742175081442,1.0531,1899.3,1899.2,44.0078]
[1742175082848,1.0531,1899.3,1899.2,40.8]
[1742175083148,3.0559,1899.3,1899.2,40.8]
[1742175083349,1.05315,1899.2,1899.1,2.70405843]
[1742175083552,3.461,1899.2,1899.1,2.70405843]
[1742175083953,3.461,1899.2,1899.1,3.75726843]
[1742175084251,3.461,1899.3,1899.1,44.55723843]
[1742175084446,4.51411,1899.3,1899.1,44.55723843]
[1742175084951,3.461,1899.3,1899.1,44.55723843]
[1742175085250,4.5141,1899.3,1899.1,44.55723843]
[1742175086953,3.461,1899.3,1899.2,1.05315]
[1742175087146,3.461,1899.3,1899.1,43.50405843]
[1742175087147,1.05315,1899.2,1899.1,43.50405843]
[1742175087550,2.48725,1899.2,1899.1,43.50405843]
[1742175088746,2.48725,1899.2,1899.1,40.8]
[1742175089454,4.1625,1899.3,1899.1,40.8]
[1742175089655,6.64973,1899.3,1899.1,40.8]
[1742175090747,3.461,1899.3,1899.2,1.05315]
[1742175090952,3.461,1899.3,1899.1,41.85317]
[1742175091148,3.461,1899.3,1899.2,1.05315]
[1742175092053,1.05315,1899.2,1899.1,40.8]
[1742175092246,2.38985,1899.2,1899.1,40.8]
[1742175093555,1.3367,1899.2,1899.1,40.8]
[1742175093754,2.38985,1899.2,1899.1,40.8]
[1742175094359,3.461,1899.3,1899.1,40.8]
[1742175094548,3.461,1899.3,1899.1,44.55722843]
[1742175094859,4.5141,1899.3,1899.1,44.55722843]
[1742175095159,4.5141,1899.3,1899.1,44.55725843]
[1742175095360,4.5141,1899.3,1899.1,43.50405843]
[1742175095361,1.05315,1899.2,1899.1,43.50405843]
[1742175095658,1.3462,1899.2,1899.1,43.50405843]
[1742175096853,2.39935,1899.2,1899.1,43.50405843]
[1742175097053,5.60715,1899.2,1899.1,43.50405843]
[1742175100360,5.60715,1899.2,1899.1,40.8]
[1742175100855,4.554,1899.2,1899.1,40.8]
[1742175101061,5.60715,1899.2,1899.1,40.8]
[1742175101454,2.39935,1899.2,1899.1,40.8]
[1742175105560,5.86035,1899.2,1899.1,40.8]
[1742175109561,1.3462,1899.2,1899.1,40.8]
[1742175109756,4.8072,1899.2,1899.1,41.85321]
[1742175110165,0.73369909,1899.4,1899.2,1.05313]
[1742175110367,3.461,1899.3,1899.1,42.16]
[1742175110563,3.461,1899.3,1899.2,1.4405]
[1742175111060,4.5141,1899.3,1899.2,1.4405]
[1742175111869,3.461,1899.3,1899.2,1.4405]
[1742175112065,3.461,1899.3,1899.2,8.40550843]
[1742175112263,4.5141,1899.3,1899.2,7.35235843]
[1742175112655,2.39227909,1899.4,1899.2,8.40550843]
[1742175112971,5.85227909,1899.4,1899.3,1.4405]
[1742175116172,4.79919909,1899.4,1899.3,1.4405]
[1742175116381,0.00789909,1899.4,1899.3,2.4936]
[1742175116675,3.46789909,1899.4,1899.3,2.4936]
[1742175117266,0.00789909,1899.4,1899.3,2.4936]
[1742175117468,1.05289,1899.7,1899.6,1.05293]
[1742175117667,2.47569,1899.7,1899.6,1.05293]
[1742175117869,4.8828,1899.7,1899.6,1.05293]
[1742175118174,5.93568,1899.7,1899.6,1.05293]
[1742175118970,4.8828,1899.7,1899.6,41.85293]
[1742175119272,3.46,1899.7,1899.6,41.85293]
[1742175119475,0.00789909,1899.8,1899.7,1.05288]
[1742175119773,3.46789909,1899.8,1899.7,5.19913843]
[1742175120077,3.46789909,1899.8,1899.7,45.99913843]
[1742175120669,5.91451909,1899.8,1899.7,44.94625843]
[1742175120969,5.91451909,1899.8,1899.7,43.50405843]
[1742175121473,4.86169909,1899.8,1899.7,44.55693843]
[1742175121671,4.86169909,1899.8,1899.7,45.99913843]
[1742175123077,0.00789909,1899.8,1899.7,45.99913843]
[1742175123280,3.46789909,1899.8,1899.7,45.99913843]
[1742175123470,0.00789909,1899.8,1899.7,45.99913843]
[1742175123672,3.46,1899.9,1899.8,1.05282]
[1742175123867,3.46,1900.0,1899.9,1.05277]
[1742175124073,3.46,1900.0,1899.9,2.46967]
[1742175124678,4.8448,1900.2,1900.1,1.05266]
[1742175124880,3.46,1900.2,1900.1,1.05266]
[1742175125084,2.1121,1900.3,1900.2,1.0526]
[1742175125271,5.5721,1900.3,1900.2,1.0526]
[1742175125472,3.46,1900.3,1900.2,41.8526]
[1742175125674,1.3848,1900.5,1900.4,1.05249]
[1742175125878,4.8448,1900.5,1900.4,1.05249]
[1742175126374,3.46,1900.5,1900.4,6.96434843]
[1742175126676,3.46,1900.5,1900.4,8.29674843]
[1742175126876,4.8259,1900.6,1900.5,1.05243]
[1742175127078,3.459,1900.6,1900.5,2.38483]
[1742175127277,1.05243,1900.5,1900.4,2.70405843]
[1742175127478,1.05254,1900.3,1900.2,40.8]
[1742175127779,4.51154,1900.3,1900.2,40.8]
[1742175127980,1.05266,1900.1,1900.0,4.03645843]
[1742175128177,1.05266,1900.1,1900.0,1.3324]
[1742175128376,0.7008,1900.2,1899.9,1.05275]
[1742175128575,0.7196,1900.0,1899.7,2.70405843]
[1742175128778,4.51179,1899.9,1899.7,5.08931843]
[1742175128968,4.51177,1899.9,1899.8,40.8]
[1742175129373,7.71957,1899.9,1899.8,40.8]
[1742175129779,10.21957,1899.9,1899.8,40.8]
[1742175130781,7.71957,1899.9,1899.8,40.8]
[1742175132177,3.2078,1899.9,1899.8,40.8]
[1742175132476,7.71957,1899.9,1899.8,40.8]
[1742175136385,6.6668,1899.9,1899.8,40.8]
[1742175136879,3.459,1899.9,1899.8,43.22331]
[1742175139390,3.459,1899.9,1899.8,43.22332]
[1742175139892,3.459,1899.9,1899.8,42.1705]
[1742175140087,4.7987,1899.9,1899.8,42.1705]
[1742175140789,4.7987,1899.9,1899.8,43.22332]
[1742175141290,3.459,1899.9,1899.8,46.43112]
[1742175141890,4.9022,1899.9,1899.8,46.43112]
[1742175142391,4.9022,1899.9,1899.8,44.0078]
[1742175142392,5.95497,1899.9,1899.8,44.0078]
[1742175142589,6.65027,1899.9,1899.8,40.8]
[1742175144689,5.5975,1899.9,1899.8,40.8]
[1742175144890,6.65027,1899.9,1899.8,40.8]
[1742175146490,5.5975,1899.9,1899.8,40.8]
[1742175147283,5.5975,1899.9,1899.8,41.85282]
[1742175147488,5.5975,1899.9,1899.8,43.18102]
[1742175147791,4.9022,1899.9,1899.8,43.18102]
[1742175148396,1.4432,1899.9,1899.8,42.1282]
[1742175148592,4.9022,1899.9,1899.8,43.18102]
[1742175149185,0.7008,1900.2,1900.0,1.05268]
[1742175149494,1.3169,1900.1,1900.0,1.05268]
[1742175149703,4.7759,1900.1,1900.0,1.05268]
[1742175150494,1.05259,1900.3,1900.0,3.2078]
[1742175150699,3.459,1900.2,1900.1,1.05262]
[1742175151199,4.5116,1900.2,1900.1,41.85262]
[1742175151498,5.8989,1900.2,1900.1,41.85262]
[1742175152097,5.8989,1900.2,1900.1,40.8]
[1742175153199,4.8463,1900.2,1900.1,41.85266]
[1742175153400,5.8989,1900.2,1900.1,41.85266]
[1742175153800,5.8989,1900.2,1900.1,40.8]
[1742175155292,4.8463,1900.2,1900.1,40.8]
[1742175155702,5.8989,1900.2,1900.1,40.8]
[1742175156801,6.5959,1900.2,1900.1,40.8]
[1742175157503,9.0959,1900.2,1900.1,40.8]
[1742175157803,6.5959,1900.2,1900.1,40.8]
[1742175161101,5.5433,1900.2,1900.1,40.8]
[1742175161498,5.5433,1900.2,1900.1,41.85266]
[1742175161695,3.459,1900.2,1900.1,41.85266]
[1742175162300,3.459,1900.2,1900.1,40.8]
[1742175162599,5.8675,1900.2,1900.1,40.8]
[1742175162792,6.5696,1900.2,1900.1,40.8]
[1742175171510,3.1106,1900.2,1900.1,40.8]
[1742175171711,32.3978,1900.3,1900.1,41.85266]
[1742175171905,3.458,1900.2,1900.1,40.8]
[1742175172311,5.824,1900.2,1900.1,40.8]
[1742175172510,4.7714,1900.2,1900.1,40.8]
[1742175173206,3.458,1900.2,1900.1,40.8]
[1742175173412,4.5106,1900.2,1900.1,40.8]
[1742175174509,0.6647,1900.5,1900.1,40.8]
[1742175174704,3.458,1900.4,1900.2,1.05258]
[1742175175014,3.458,1900.4,1900.3,1.05254]
[1742175176011,4.51049,1900.4,1900.3,1.05254]
[1742175176407,35.0285,1900.8,1900.3,5.91185843]
[1742175176408,29.19,1900.8,1900.3,5.91185843]
[1742175176714,1.05238,1900.6,1900.5,1.0524]
[1742175176916,1.05245,1900.5,1900.4,1.05248]
[1742175177209,1.05245,1900.5,1900.4,1.06037909]
[1742175177818,1.05245,1900.5,1900.4,0.00789909]
[1742175179516,2.38573,1900.6,1900.4,1.06034909]
[1742175179713,2.38573,1900.6,1900.5,1.05243]
[1742175179915,1.3333,1900.6,1900.5,1.05243]
[1742175180111,1.3333,1900.6,1900.5,41.85243]
[1742175180521,2.38568,1900.6,1900.5,40.8]
[1742175180717,2.38568,1900.6,1900.5,41.85243]
[1742175181320,2.38568,1900.6,1900.5,40.8]
[1742175181621,3.06128,1900.6,1900.5,40.8]
[1742175181817,2.0089,1900.6,1900.5,41.85243]
[1742175183017,3.06128,1900.6,1900.5,40.8]
[1742175183315,2.0089,1900.6,1900.5,40.8]
[1742175183822,2.0089,1900.6,1900.5,41.85243]
[1742175187015,2.0089,1900.6,1900.5,40.8]
[1742175187211,2.0089,1900.6,1900.5,41.85243]
[1742175188713,3.06128,1900.6,1900.5,40.8]
[1742175189717,2.0089,1900.6,1900.5,40.8]
[1742175190020,3.06128,1900.6,1900.5,40.8]
[1742175190319,2.0089,1900.6,1900.5,42.1172]
[1742175190711,3.06128,1900.6,1900.5,42.1172]
[1742175191125,3.06128,1900.6,1900.5,43.16963]
[1742175191126,2.0089,1900.6,1900.5,43.16963]
[1742175191923,29.8457,1900.8,1900.7,1.05232]
[1742175192119,33.3027,1900.8,1900.7,1.05232]
[1742175192320,29.8457,1900.8,1900.5,3.2078]
[1742175192617,0.6557,1900.8,1900.7,41.85232]
[1742175192812,4.1127,1900.8,1900.7,41.85232]
[1742175193509,1.4183,1901.0,1900.9,1.05221]
[1742175193715,6.55519,1901.3,1901.0,1.05215]
[1742175193918,2.47046,1901.1,1901.0,1.05215]
[1742175195021,1.05216,1901.0,1900.9,4.25998]
[1742175195217,2.47046,1901.0,1900.9,4.25998]
[1742175195424,1.4183,1901.0,1900.9,4.25998]
[1742175195809,1.3934,1901.3,1900.9,3.2078]
[1742175196015,3.457,1901.2,1901.1,1.05206]
[1742175196417,4.848,1901.2,1901.1,1.05206]
[1742175196616,1.391,1901.2,1901.1,1.05206]
[1742175196918,4.1744,1901.3,1901.2,1.05205]
[1742175197115,5.5654,1901.3,1901.2,41.85205]
[1742175197310,2.1084,1901.3,1901.2,41.85205]
[1742175197510,3.457,1901.4,1901.3,1.05199]
[1742175197911,4.851,1901.6,1901.5,1.05188]
[1742175198117,5.5558,1901.6,1901.5,1.05188]
[1742175198322,2.0988,1901.6,1901.5,1.05188]
[1742175198819,5.5558,1901.6,1901.5,1.05188]
[1742175199323,1.7379,1901.9,1901.7,1.05174]
[1742175199520,2.0505,1901.8,1901.7,1.05174]
[1742175199827,5.5075,1901.8,1901.7,1.05177]
[1742175201221,6.55921,1901.8,1901.7,1.05177]
[1742175201421,5.5075,1901.8,1901.7,1.05177]
[1742175201618,5.5075,1901.8,1901.7,4.25957]
[1742175202326,3.457,1901.8,1901.7,4.25957]
[1742175203027,4.8316,1901.8,1901.7,4.25957]
[1742175203826,1.3884,1902.2,1901.9,1.05161]
[1742175204027,1.05162,1902.0,1901.7,3.2078]
[1742175204222,1.3746,1901.9,1901.8,1.05171]
[1742175204422,1.3746,1901.9,1901.8,41.85171]
[1742175206228,2.042,1901.9,1901.8,41.85171]
[1742175207028,3.09366,1901.9,1901.8,40.8]
[1742175207424,2.042,1901.9,1901.8,40.8]
[1742175207728,2.042,1901.9,1901.8,41.85171]
[1742175208027,2.042,1901.9,1901.8,40.8]
[1742175208421,3.09366,1901.9,1901.8,40.8]
[1742175208618,2.042,1901.9,1901.8,41.85171]
[1742175208927,2.042,1901.9,1901.8,40.8]
[1742175209527,1.3746,1901.9,1901.8,41.85171]
[1742175210128,1.3746,1901.9,1901.8,43.26951]
[1742175210720,1.3746,1901.9,1901.8,42.2178]
[1742175211023,2.42626,1901.9,1901.8,40.8]
[1742175211424,1.3746,1901.9,1901.8,40.8]
[1742175211620,1.3746,1901.9,1901.8,41.85171]
[1742175211825,1.3746,1901.9,1901.8,40.8]
[1742175212620,2.42626,1901.9,1901.8,40.8]
[1742175212822,1.3746,1901.9,1901.8,40.8]
[1742175213223,1.3746,1901.9,1901.8,41.85171]
[1742175213427,1.3746,1901.9,1901.8,42.1415]
[1742175213826,2.42626,1901.9,1901.8,40.8]
[1742175214226,1.3746,1901.9,1901.8,40.8]
[1742175214628,2.42626,1901.9,1901.8,42.1605]
[1742175215136,2.42626,1901.9,1901.8,40.8]
[1742175218435,5.88126,1901.9,1901.8,40.8]
[1742175221031,8.38126,1901.9,1901.8,40.8]
[1742175221543,9.37121494,1901.9,1901.8,40.8]
[1742175221929,10.2432055,1901.9,1901.8,40.8]
[1742175222232,1.05188,1901.5,1901.4,0.00789909]
[1742175222432,6.6628,1901.5,1901.1,3.2078]
[1742175222628,1.05205,1901.2,1901.1,3.2078]
[1742175222936,1.05212,1901.1,1900.9,3.2078]
[1742175223138,3.13192,1901.1,1900.9,3.2078]
[1742175223336,3.13192,1901.1,1901.0,40.8]
[1742175224335,6.33972,1901.1,1901.0,40.8]
[1742175225533,7.05942,1901.1,1901.0,40.8]
[1742175236549,0.00789909,1901.2,1901.0,40.8]